bitfinex/quotes_BTCUSD_20240906
["timestamp","ask_amount","ask_price","bid_price","bid_amount"]
[1725607655292,0.2653,55692.0,55670.0,0.00847464]
[1725607655293,1.5899,55692.0,55670.0,0.00847464]
[1725607655520,1.5899,55692.0,55669.0,0.257]
[1725607655730,1.5899,55692.0,55691.0,0.538686]
[1725607655970,1.5899,55698.0,55691.0,0.00829972]
[1725607656416,1.5899,55698.0,55692.0,0.359115]
[1725607656623,1.5899,55698.0,55684.0,0.4565011]
[1725607656832,1.5899,55698.0,55692.0,0.359116]
[1725607657048,1.5899,55698.0,55688.0,0.359143]
[1725607657261,0.179543,55697.0,55691.0,0.17956]
[1725607657490,1.5899,55698.0,55689.0,0.00831637]
[1725607657716,0.359086,55697.0,55673.0,0.52650515]
[1725607657934,1.5899,55698.0,55690.0,0.00830805]
[1725607658155,0.359093,55696.0,55686.0,0.179575]
[1725607658415,0.359116,55693.0,55683.0,0.359174]
[1725607658626,0.17956,55692.0,55687.0,0.00833303]
[1725607658840,0.17954,55698.0,55682.0,0.359181]
[1725607659060,0.359105,55694.0,55675.0,0.4565011]
[1725607659271,1.5899,55699.0,55679.0,0.1796]
[1725607659486,0.179579,55686.0,55683.0,0.00836634]
[1725607659732,1.5899,55699.0,55678.0,0.359202]
[1725607659951,0.179557,55693.0,55684.0,0.00835801]
[1725607660171,0.179557,55693.0,55687.0,0.179574]
[1725607660395,0.359096,55696.0,55685.0,0.00359115]
[1725607660609,0.359138,55689.0,55680.0,0.359195]
[1725607660817,0.179575,55687.0,55681.0,0.179593]
[1725607661040,0.538709,55689.0,55682.0,0.17959]
[1725607661276,0.179576,55687.0,55677.0,0.359213]
[1725607661489,0.17957,55689.0,55683.0,0.179586]
[1725607661699,0.17957,55689.0,55681.0,0.359188]
[1725607661700,0.179574,55688.0,55682.0,0.17959]
[1725607661910,0.359131,55690.0,55682.0,0.17959]
[1725607662128,0.35916,55686.0,55677.0,0.359213]
[1725607662410,0.359145,55688.0,55678.0,0.00359155]
[1725607662625,0.179576,55687.0,55683.0,0.179587]
[1725607662852,0.4689,55689.0,55680.0,0.359192]
[1725607663068,0.4689,55689.0,55683.0,0.359173]
[1725607663316,0.4689,55689.0,55684.0,0.359169]
[1725607663527,0.4689,55689.0,55686.0,0.179576]
[1725607663750,0.4689,55689.0,55687.0,0.00833303]
[1725607663973,0.179624,55672.0,55659.0,1.17510625]
[1725607664179,0.179616,55675.0,55673.0,0.52650515]
[1725607664389,0.17961,55676.0,55663.0,0.359303]
[1725607664593,0.179602,55679.0,55665.0,0.4565011]
[1725607664800,0.179601,55679.0,55675.0,0.179612]
[1725607665029,0.179615,55675.0,55671.0,0.179625]
[1725607665224,0.179615,55675.0,55670.0,0.360459]
[1725607665450,0.359126,55691.0,55670.0,0.0012]
[1725607665451,1.356632,55671.0,55670.0,0.0012]
[1725607665672,1.715885,55671.0,55670.0,0.0012]
[1725607666230,2.434391,55671.0,55670.0,0.0012]
[1725607666461,2.075138,55671.0,55670.0,0.0012]
[1725607670142,2.075138,55671.0,55656.0,0.001628]
[1725607670143,1.7326,55657.0,55656.0,0.001628]
[1725607670581,2.5484441,55657.0,55656.0,0.001628]
[1725607672229,2.9077871,55657.0,55656.0,0.001628]
[1725607672495,2.9077871,55657.0,55644.0,0.001628]
[1725607672496,2.5245951,55645.0,55644.0,0.001628]
[1725607672790,3.2568101,55645.0,55644.0,0.001628]
[1725607672994,3.7162311,55645.0,55644.0,0.001628]
[1725607673206,3.4697351,55645.0,55644.0,0.001628]
[1725607673420,3.4605221,55645.0,55644.0,0.001628]
[1725607673640,3.4605221,55645.0,55639.0,0.001628]
[1725607673641,2.186591,55640.0,55639.0,0.001628]
[1725607673856,2.762377,55640.0,55639.0,0.001628]
[1725607674125,2.085438,55640.0,55639.0,0.001628]
[1725607674554,1.725985,55640.0,55639.0,0.001628]
[1725607675411,0.179726,55640.0,55639.0,0.001628]
[1725607675623,0.898632,55640.0,55639.0,0.001628]
[1725607675838,1.258085,55640.0,55639.0,0.001628]
[1725607676272,0.898632,55640.0,55639.0,0.001628]
[1725607676715,0.1922,55649.0,55639.0,0.001628]
[1725607676927,0.539179,55640.0,55639.0,0.001628]
[1725607677135,0.898632,55640.0,55639.0,0.001628]
[1725607677557,1.258085,55640.0,55639.0,0.001628]
[1725607677817,0.898632,55640.0,55639.0,0.001628]
[1725607678040,1.258085,55640.0,55639.0,0.001628]
[1725607678253,0.898632,55640.0,55639.0,0.001628]
[1725607678879,1.258085,55640.0,55639.0,0.001628]
[1725607679129,0.898632,55640.0,55639.0,0.001628]
[1725607679552,1.258085,55640.0,55639.0,0.001628]
[1725607679782,2.251591,55640.0,55639.0,0.001628]
[1725607679990,2.089438,55640.0,55639.0,0.001628]
[1725607681050,1.729985,55640.0,55639.0,0.001628]
[1725607681262,1.889985,55640.0,55639.0,0.001628]
[1725607681484,0.16,55640.0,55639.0,0.001628]
[1725607681713,0.179726,55640.0,55639.0,0.001628]
[1725607681934,1.258085,55640.0,55639.0,0.001628]
[1725607682391,2.0740391,55640.0,55639.0,0.001628]
[1725607683062,2.7108921,55640.0,55639.0,0.001628]
[1725607683483,2.3514391,55640.0,55639.0,0.001628]
[1725607683694,2.7108921,55640.0,55639.0,0.001628]
[1725607684551,2.8408921,55640.0,55639.0,0.001628]
[1725607685535,2.7108921,55640.0,55639.0,0.001628]
[1725607685897,2.7108921,55640.0,55639.0,1e-06]
[1725607685898,3.0703451,55640.0,55639.0,1e-06]
[1725607686140,3.67598753,55640.0,55639.0,1e-06]
[1725607686376,0.4565011,55627.0,55612.0,0.52650515]
[1725607686592,0.359566,55623.0,55612.0,0.52650515]
[1725607686842,0.359543,55627.0,55613.0,0.00701009]
[1725607687278,0.359606,55617.0,55613.0,0.00701009]
[1725607687487,0.359606,55617.0,55611.0,0.179819]
[1725607687704,0.359606,55617.0,55610.0,0.00359604]
[1725607687705,0.179807,55615.0,55614.0,0.00700383]
[1725607687917,0.539422,55615.0,55614.0,0.00700383]
[1725607688132,0.179818,55612.0,55608.0,0.179829]
[1725607688344,0.359627,55614.0,55607.0,0.612166]
[1725607688561,0.179818,55612.0,55608.0,0.179828]
[1725607688791,0.53944,55614.0,55609.0,0.179826]
[1725607689020,0.53944,55614.0,55607.0,0.612166]
[1725607689021,0.35961,55616.0,55607.0,0.612166]
[1725607689240,0.179789,55621.0,55609.0,0.00359612]
[1725607689582,0.179786,55622.0,55609.0,0.00359612]
[1725607689584,0.179786,55622.0,55619.0,0.179794]
[1725607689787,0.4074,55640.0,55620.0,0.0035956]
[1725607690010,0.4074,55640.0,55623.0,0.35956]
[1725607690011,0.179767,55628.0,55623.0,0.35956]
[1725607690163,0.179767,55628.0,55620.0,0.1902]
[1725607690164,0.359468,55638.0,55625.0,0.359548]
[1725607690372,0.15076485,55640.0,55630.0,0.179756]
[1725607690373,0.179747,55634.0,55630.0,0.179756]
[1725607690587,0.179727,55640.0,55636.0,0.451238]
[1725607690807,0.2685,55654.0,55636.0,0.2715]
[1725607691224,0.179724,55641.0,55636.0,0.2715]
[1725607691423,0.2685,55654.0,55637.0,0.1957]
[1725607691633,0.179733,55638.0,55637.0,0.1957]
[1725607691830,0.539199,55638.0,55637.0,0.1957]
[1725607692310,0.179733,55638.0,55637.0,0.1957]
[1725607692511,0.8159211,55646.0,55629.0,0.2575]
[1725607692714,0.359427,55645.0,55629.0,0.2575]
[1725607692927,0.359427,55645.0,55623.0,0.359558]
[1725607692928,0.4565011,55640.0,55623.0,0.2575]
[1725607693206,0.4565011,55640.0,55623.0,0.617059]
[1725607693420,0.359495,55634.0,55628.0,0.179763]
[1725607693647,0.359495,55634.0,55626.0,0.359538]
[1725607693648,0.179753,55632.0,55626.0,0.359538]
[1725607693851,0.179753,55632.0,55629.0,0.00723493]
[1725607694228,0.179752,55633.0,55630.0,0.00722867]
[1725607694443,0.179753,55632.0,55630.0,0.00722867]
[1725607694865,0.359495,55634.0,55630.0,0.00722867]
[1725607695075,0.179778,55624.0,55617.0,0.359598]
[1725607695282,0.359477,55637.0,55631.0,0.00722241]
[1725607695283,0.539257,55632.0,55631.0,0.00722241]
[1725607695498,0.179777,55625.0,55622.0,0.179784]
[1725607696146,0.359477,55637.0,55619.0,0.361212]
[1725607696147,0.359548,55626.0,55619.0,0.001628]
[1725607696362,0.179791,55620.0,55619.0,0.001628]
[1725607696774,0.539373,55620.0,55619.0,0.001628]
[1725607697225,0.898955,55620.0,55619.0,0.001628]
[1725607697442,1.258537,55620.0,55619.0,0.001628]
[1725607699003,1.258337,55620.0,55619.0,0.001628]
[1725607700994,0.898755,55620.0,55619.0,0.001628]
[1725607701266,0.179591,55620.0,55619.0,0.001628]
[1725607701537,0.1807,55634.0,55619.0,0.001628]
[1725607701785,0.179775,55625.0,55620.0,0.35958]
[1725607702021,0.359507,55632.0,55619.0,0.001628]
[1725607702287,0.179768,55628.0,55623.0,0.359558]
[1725607702540,0.359468,55638.0,55620.0,0.2587]
[1725607702774,0.179775,55625.0,55624.0,0.00726622]
[1725607703015,0.6538151,55640.0,55620.0,0.2587]
[1725607703227,0.179782,55623.0,55620.0,0.43849]
[1725607703430,0.359542,55627.0,55622.0,0.179784]
[1725607703655,0.179773,55626.0,55622.0,0.179783]
[1725607703867,0.6538151,55640.0,55621.0,0.359574]
[1725607703868,0.359499,55633.0,55621.0,0.359574]
[1725607704078,0.179772,55626.0,55622.0,0.371883]
[1725607704286,0.4573151,55640.0,55622.0,0.1921]
[1725607704492,0.35946,55639.0,55622.0,0.371884]
[1725607704696,0.179781,55623.0,55622.0,0.1921]
[1725607705395,0.17920717,55624.0,55622.0,0.1921]
[1725607705604,0.17978,55624.0,55622.0,0.1921]
[1725607705797,0.179779,55624.0,55622.0,0.1921]
[1725607706017,0.179779,55624.0,55621.0,0.179787]
[1725607706243,0.179779,55624.0,55619.0,0.361213]
[1725607706244,0.179791,55620.0,55619.0,0.001628]
[1725607706461,0.898955,55620.0,55619.0,0.001628]
[1725607707157,0.539373,55620.0,55619.0,0.001628]
[1725607707833,0.898955,55620.0,55619.0,0.001628]
[1725607710064,1.36712979,55620.0,55619.0,0.001628]
[1725607710285,1.258537,55620.0,55619.0,0.001628]
[1725607710953,0.898955,55620.0,55619.0,0.001628]
[1725607712463,1.258537,55620.0,55619.0,0.001628]
[1725607712693,1.884419,55620.0,55619.0,0.001628]
[1725607713339,2.244001,55620.0,55619.0,0.001628]
[1725607713549,1.884419,55620.0,55619.0,0.001628]
[1725607714173,1.524837,55620.0,55619.0,0.001628]
[1725607714620,0.898955,55620.0,55619.0,0.001628]
[1725607714902,1.258537,55620.0,55619.0,0.001628]
[1725607715115,0.179791,55620.0,55619.0,0.001628]
[1725607715568,1.258537,55620.0,55619.0,0.001628]
[1725607716213,1.618119,55620.0,55619.0,0.001628]
[1725607716428,1.258537,55620.0,55619.0,0.001628]
[1725607719314,1.00713667,55620.0,55619.0,0.001628]
[1725607719522,0.82734567,55620.0,55619.0,0.001628]
[1725607719733,1.18692767,55620.0,55619.0,0.001628]
[1725607720411,1.54650967,55620.0,55619.0,0.001628]
[1725607720655,2.62131243,55620.0,55619.0,0.001228]
[1725607720883,3.50022843,55620.0,55619.0,0.001228]
[1725607721096,3.51714043,55620.0,55619.0,0.001228]
[1725607721326,2.45123043,55620.0,55619.0,0.001228]
[1725607721547,2.86466192,55620.0,55619.0,0.001228]
[1725607721773,2.96466192,55620.0,55619.0,0.001228]
[1725607721991,2.84449821,55620.0,55619.0,0.001228]
[1725607722213,2.81720512,55620.0,55619.0,0.001228]
[1725607722436,1.24077716,55620.0,55619.0,0.001228]
[1725607722665,1.60035916,55620.0,55619.0,0.001228]
[1725607722904,1.95994116,55620.0,55619.0,0.001228]
[1725607723122,3.33665647,55620.0,55619.0,0.001228]
[1725607723543,3.36394956,55620.0,55619.0,0.001228]
[1725607723800,3.23550625,55620.0,55619.0,0.001228]
[1725607724011,3.13260225,55620.0,55619.0,0.001228]
[1725607724229,2.88502416,55620.0,55619.0,0.001228]
[1725607724442,2.87502416,55620.0,55619.0,0.001228]
[1725607724662,1.51347716,55620.0,55619.0,0.001228]
[1725607725109,0.86992289,55620.0,55619.0,0.001228]
[1725607725327,0.48413952,55620.0,55619.0,0.001228]
[1725607725754,0.19616685,55620.0,55619.0,0.00828297]
[1725607725967,0.19616685,55620.0,55619.0,0.001228]
[1725607725968,0.91533085,55620.0,55619.0,0.001228]
[1725607726403,1.27491285,55620.0,55619.0,0.001228]
[1725607726621,1.63449485,55620.0,55619.0,0.001228]
[1725607726831,1.69066016,55620.0,55619.0,0.001228]
[1725607727051,1.66068687,55620.0,55619.0,0.001228]
[1725607727718,1.618119,55620.0,55619.0,0.001228]
[1725607727939,1.6606869,55620.0,55619.0,0.001228]
[1725607729432,1.66047052,55620.0,55619.0,0.001228]
[1725607730522,2.02005252,55620.0,55619.0,0.001228]
[1725607730738,2.22614993,55620.0,55619.0,0.001228]
[1725607730941,2.27998214,55620.0,55619.0,0.001228]
[1725607731147,2.22381683,55620.0,55619.0,0.001228]
[1725607731575,1.86423483,55620.0,55619.0,0.001228]
[1725607733258,1.30088098,55620.0,55619.0,0.001228]
[1725607733684,1.67173382,55620.0,55619.0,0.001228]
[1725607733904,1.30088098,55620.0,55619.0,0.001228]
[1725607734121,1.66046298,55620.0,55619.0,0.001228]
[1725607734351,1.30088098,55620.0,55619.0,0.001228]
[1725607734566,1.31215247,55620.0,55619.0,0.001228]
[1725607734785,1.31215248,55620.0,55619.0,0.001228]
[1725607734998,1.30088098,55620.0,55619.0,0.001228]
[1725607735213,1.31215245,55620.0,55619.0,0.001228]
[1725607735462,1.30088098,55620.0,55619.0,0.001228]
[1725607735687,1.31215176,55620.0,55619.0,0.001228]
[1725607735899,1.30088098,55620.0,55619.0,0.001228]
[1725607736136,1.31215199,55620.0,55619.0,0.001228]
[1725607736343,1.31215164,55620.0,55619.0,0.001228]
[1725607736564,1.30088098,55620.0,55619.0,0.001228]
[1725607738781,1.31215178,55620.0,55619.0,0.001228]
[1725607738989,1.30088098,55620.0,55619.0,0.001228]
[1725607740203,1.31215151,55620.0,55619.0,0.001228]
[1725607740967,1.72789882,55620.0,55619.0,0.001228]
[1725607741492,1.67173351,55620.0,55619.0,0.001228]
[1725607741733,1.67254851,55620.0,55619.0,0.001228]
[1725607741973,1.31296651,55620.0,55619.0,0.001228]
[1725607742916,1.30169598,55620.0,55619.0,0.001228]
[1725607743683,1.25913562,55620.0,55619.0,0.001228]
[1725607743910,1.30171772,55620.0,55619.0,0.001228]
[1725607744605,0.0433971,55620.0,55619.0,0.001228]
[1725607744815,0.000815,55620.0,55619.0,0.5442064]
[1725607745036,0.000815,55620.0,55619.0,0.19008493]
[1725607745251,0.000815,55620.0,55619.0,0.90926293]
[1725607746398,0.000815,55620.0,55619.0,1.26885193]
[1725607747543,0.000815,55620.0,55619.0,1.53735193]
[1725607749093,0.000815,55620.0,55619.0,1.5542569]
[1725607749309,0.000815,55620.0,55619.0,1.53735193]
[1725607749522,0.000815,55620.0,55619.0,1.89694093]
[1725607749784,0.000815,55620.0,55619.0,1.56035193]
[1725607750036,0.000815,55620.0,55619.0,1.91994093]
[1725607750248,0.000815,55624.0,55623.0,1.84708068]
[1725607750468,0.000814,55640.0,55638.0,1.176865]
[1725607750679,0.000814,55640.0,55638.0,1.536331]
[1725607750913,0.000814,55640.0,55638.0,1.90470138]
[1725607751151,0.000814,55640.0,55638.0,1.92770138]
[1725607751365,0.52650515,55660.0,55647.0,0.31041068]
[1725607751585,0.52650515,55660.0,55659.0,0.179665]
[1725607751803,0.35928,55667.0,55657.0,0.17967]
[1725607752024,0.179656,55662.0,55659.0,0.00872927]
[1725607752248,0.179659,55661.0,55659.0,0.00872927]
[1725607752468,0.59514231,55661.0,55660.0,0.00872093]
[1725607752684,0.898295,55661.0,55660.0,0.00872093]
[1725607752895,0.35936,55655.0,55650.0,0.1954]
[1725607753107,0.179685,55653.0,55650.0,0.1954]
[1725607753318,0.35936,55655.0,55651.0,0.00879596]
[1725607753552,0.359321,55661.0,55651.0,0.00879596]
[1725607753795,0.359321,55661.0,55652.0,0.36296838]
[1725607754016,0.000814,55671.0,55653.0,0.00359324]
[1725607754233,0.000814,55671.0,55653.0,0.01237253]
[1725607754234,0.359286,55666.0,55653.0,0.01237253]
[1725607754448,0.359308,55663.0,55653.0,0.01237253]
[1725607754668,0.000815,55661.0,55657.0,0.359342]
[1725607754890,0.000815,55661.0,55654.0,0.359356]
[1725607755122,0.000815,55661.0,55660.0,0.179662]
[1725607755362,0.000815,55661.0,55660.0,0.18325496]
[1725607755571,0.000815,55661.0,55660.0,0.45304819]
[1725607755784,0.000815,55661.0,55660.0,0.81237219]
[1725607756282,0.000815,55661.0,55660.0,1.17169619]
[1725607756503,0.000815,55661.0,55660.0,0.81237219]
[1725607756715,0.000815,55661.0,55660.0,0.27352093]
[1725607756927,0.000815,55661.0,55660.0,0.45318293]
[1725607757146,0.000815,55661.0,55660.0,0.27334929]
[1725607757387,0.000815,55661.0,55660.0,0.81233529]
[1725607759125,0.89911,55661.0,55660.0,0.00854383]
[1725607759374,1.617746,55661.0,55660.0,0.00854383]
[1725607759618,0.35937,55653.0,55635.0,0.179742]
[1725607759855,0.000815,55661.0,55634.0,0.1913]
[1725607759856,0.359414,55646.0,55645.0,0.52650515]
[1725607760110,0.179735,55638.0,55636.0,0.26319155]
[1725607760333,0.359344,55657.0,55645.0,0.00881648]
[1725607760551,0.539121,55646.0,55645.0,0.00881648]
[1725607760769,0.179736,55637.0,55636.0,0.2543]
[1725607760990,0.179734,55638.0,55636.0,0.2543]
[1725607761204,0.179736,55637.0,55636.0,0.26316711]
[1725607761460,0.179734,55638.0,55636.0,0.26316711]
[1725607761698,0.179736,55637.0,55636.0,0.00886711]
[1725607761931,0.359411,55647.0,55636.0,0.00886711]
[1725607762162,0.359439,55643.0,55637.0,0.179735]
[1725607762383,0.179726,55640.0,55637.0,0.18859376]
[1725607762598,0.359439,55643.0,55637.0,0.00885876]
[1725607762599,0.35945,55641.0,55637.0,0.00885876]
[1725607762824,0.359466,55638.0,55628.0,0.179763]
[1725607763033,0.2591,55644.0,55638.0,0.00885042]
[1725607763243,0.53919,55639.0,55638.0,0.00885042]
[1725607763454,0.53919,55639.0,55629.0,0.179762]
[1725607763455,0.179749,55633.0,55629.0,0.179762]
[1725607763680,0.359448,55641.0,55629.0,0.35934252]
[1725607763892,0.179744,55635.0,55630.0,0.00891717]
[1725607764110,0.000815,55661.0,55630.0,0.00891717]
[1725607764111,0.2581,55650.0,55631.0,0.359508]
[1725607764350,0.2581,55650.0,55633.0,0.359497]
[1725607764351,0.179731,55639.0,55633.0,0.359497]
[1725607764562,0.359448,55641.0,55633.0,0.359497]
[1725607764563,0.179727,55640.0,55636.0,0.179739]
[1725607764778,0.2581,55650.0,55632.0,0.36839948]
[1725607764994,0.179708,55646.0,55642.0,0.17972]
[1725607765229,0.179707,55646.0,55640.0,0.359447]
[1725607765449,0.179713,55644.0,55643.0,0.00880872]
[1725607765663,0.179719,55643.0,55638.0,0.359462]
[1725607765878,0.179698,55649.0,55643.0,0.00880872]
[1725607766117,0.179702,55648.0,55644.0,0.179713]
[1725607766355,0.35937,55653.0,55643.0,0.00359405]
[1725607766648,0.01,55675.0,55643.0,0.00359405]
[1725607766649,0.179693,55651.0,55645.0,0.00879204]
[1725607766877,0.179689,55652.0,55648.0,0.179699]
[1725607767106,0.359351,55656.0,55649.0,0.179695]
[1725607767322,0.17968,55655.0,55649.0,0.36815268]
[1725607767534,0.359347,55657.0,55652.0,0.179685]
[1725607767768,0.359333,55659.0,55649.0,0.00875868]
[1725607768026,0.359326,55660.0,55654.0,0.359361]
[1725607768257,0.000815,55661.0,55660.0,0.538986]
[1725607768537,0.000815,55661.0,55660.0,0.89831]
[1725607768751,0.000815,55661.0,55660.0,0.90737716]
[1725607771034,1.31634937,55664.0,55663.0,0.898262]
[1725607771441,1.31634937,55664.0,55663.0,0.18869415]
[1725607771978,1.31634937,55664.0,55663.0,0.54799915]
[1725607772331,1.31634937,55664.0,55663.0,0.90730415]
[1725607772751,1.31634937,55664.0,55663.0,0.54799915]
[1725607773200,1.31634937,55664.0,55663.0,0.90730415]
[1725607774718,1.31634937,55664.0,55663.0,0.54799915]
[1725607775142,1.31634937,55664.0,55663.0,0.90730415]
[1725607775848,1.31634937,55664.0,55663.0,0.18869415]
[1725607776070,1.31634937,55664.0,55663.0,0.54799915]
[1725607776712,1.31634937,55664.0,55663.0,0.18869415]
[1725607776948,1.31634937,55664.0,55663.0,0.90730415]
[1725607777404,1.31634937,55664.0,55663.0,1.26660915]
[1725607778051,1.31634937,55664.0,55663.0,1.28960915]
[1725607778477,1.31634937,55664.0,55663.0,1.65054415]
[1725607778685,1.31634937,55664.0,55663.0,2.11314415]
[1725607778900,1.31716437,55664.0,55663.0,2.11314415]
[1725607779357,1.31716437,55664.0,55663.0,2.22314415]
[1725607779799,1.31816437,55664.0,55663.0,2.25402721]
[1725607780220,0.001815,55664.0,55663.0,2.27602721]
[1725607780460,0.001815,55664.0,55663.0,2.25714415]
[1725607780688,0.359126,55691.0,55669.0,0.31041068]
[1725607780939,0.01640952,55688.0,55674.0,0.359234]
[1725607781136,0.179604,55678.0,55674.0,0.179614]
[1725607781351,0.359124,55691.0,55675.0,0.00794216]
[1725607781553,0.359152,55687.0,55675.0,0.36716616]
[1725607781765,0.1796,55680.0,55675.0,0.36716616]
[1725607782057,0.359191,55681.0,55675.0,0.36716616]
[1725607782058,0.179595,55681.0,55675.0,0.36716616]
[1725607782269,0.359176,55683.0,55677.0,0.179606]
[1725607782513,0.179601,55679.0,55675.0,0.191146]
[1725607782721,0.179573,55688.0,55678.0,0.0087505]
[1725607782924,0.179585,55684.0,55678.0,0.179603]
[1725607783136,0.001,55680.0,55677.0,0.359212]
[1725607783350,0.001,55680.0,55679.0,0.90674417]
[1725607783595,0.001,55680.0,55679.0,0.898002]
[1725607783814,0.001,55680.0,55679.0,1.44984517]
[1725607784259,0.001,55680.0,55679.0,0.90674417]
[1725607784486,0.359119,55692.0,55684.0,0.359166]
[1725607784754,0.18531,55695.0,55679.0,0.00874217]
[1725607784975,0.18531,55695.0,55678.0,0.2599]
[1725607784976,0.18531,55695.0,55688.0,0.359143]
[1725607785198,0.364859,55695.0,55689.0,0.359132]
[1725607785433,0.00081,55695.0,55694.0,0.538657]
[1725607785633,0.00081,55695.0,55694.0,1.256867]
[1725607785897,0.00081,55695.0,55694.0,0.538657]
[1725607786113,0.00081,55695.0,55694.0,0.54727426]
[1725607786330,0.00081,55695.0,55694.0,0.90637926]
[1725607786540,0.00081,55695.0,55694.0,1.18477926]
[1725607786956,0.00081,55695.0,55694.0,1.54388426]
[1725607787433,0.00081,55695.0,55694.0,1.56688426]
[1725607787848,0.00081,55695.0,55694.0,0.82567426]
[1725607788059,0.00081,55695.0,55694.0,0.54727426]
[1725607788274,0.00081,55695.0,55694.0,0.56127426]
[1725607788684,0.00081,55695.0,55694.0,0.54727426]
[1725607788897,0.00081,55695.0,55694.0,0.20216926]
[1725607789535,0.00081,55695.0,55694.0,0.56127426]
[1725607789953,0.00081,55695.0,55694.0,0.92037926]
[1725607790219,0.00081,55695.0,55694.0,1.27948426]
[1725607790910,0.00081,55695.0,55694.0,0.92037926]
[1725607791124,0.00081,55695.0,55694.0,1.27948426]
[1725607791335,0.00081,55695.0,55694.0,0.92037926]
[1725607792221,0.00081,55695.0,55694.0,1.27948426]
[1725607794475,0.00081,55695.0,55694.0,1.30248426]
[1725607794694,0.00081,55695.0,55694.0,1.57168426]
[1725607794908,0.00081,55695.0,55694.0,1.27948426]
[1725607795130,0.00081,55695.0,55694.0,0.92037926]
[1725607796509,0.00081,55695.0,55694.0,0.02261726]
[1725607796732,0.994757,55695.0,55694.0,0.02261726]
[1725607796955,1.37026912,55695.0,55694.0,0.02261726]
[1725607797181,1.37026912,55695.0,55694.0,0.014]
[1725607797182,1.31026912,55695.0,55694.0,0.014]
[1725607797416,0.01641412,55695.0,55694.0,0.552657]
[1725607797644,0.04456443,55695.0,55694.0,0.552657]
[1725607797865,0.02815031,55695.0,55694.0,1.27948426]
[1725607798277,0.30082,55700.0,55695.0,1.256843]
[1725607798722,1.3389085,55702.0,55701.0,0.179529]
[1725607798944,1.3389085,55702.0,55701.0,0.538588]
[1725607799155,1.3389085,55702.0,55701.0,0.90620599]
[1725607799388,1.3389085,55702.0,55701.0,1.26526499]
[1725607800324,1.3389085,55702.0,55701.0,0.90620599]
[1725607800552,2.16030626,55702.0,55701.0,0.00855899]
[1725607800980,2.74172694,55702.0,55701.0,0.00855899]
[1725607801235,3.10077994,55702.0,55701.0,0.00855899]
[1725607801463,3.45983294,55702.0,55701.0,0.00855899]
[1725607801690,3.45983294,55702.0,55675.0,0.00163]
[1725607801691,0.17961,55676.0,55675.0,0.00163]
[1725607801926,2.3132115,55676.0,55675.0,0.00163]
[1725607802178,2.6724325,55676.0,55675.0,0.00163]
[1725607802426,2.68417357,55676.0,55675.0,0.00163]
[1725607802643,3.0598002,55676.0,55675.0,0.00163]
[1725607802861,1.173945,55664.0,55655.0,0.03]
[1725607803081,1.54964863,55664.0,55655.0,0.03]
[1725607803304,1.74134863,55664.0,55655.0,0.03]
[1725607803566,3.4376476,55664.0,55655.0,0.03]
[1725607803844,1.257725,55656.0,55655.0,0.03]
[1725607804063,1.73846986,55656.0,55655.0,0.03]
[1725607805203,1.74040365,55656.0,55655.0,0.03]
[1725607805449,1.38105365,55656.0,55655.0,0.03]
[1725607805689,1.38104912,55656.0,55655.0,0.03]
[1725607806152,1.38104912,55656.0,55655.0,0.04]
[1725607806153,0.66334912,55656.0,55655.0,0.04]
[1725607806583,1.38204912,55656.0,55655.0,0.04]
[1725607807026,1.38204912,55656.0,55630.0,0.52650515]
[1725607807027,0.50991425,55656.0,55630.0,0.52650515]
[1725607807244,1.696794,55644.0,55630.0,0.52650515]
[1725607807466,3.00755574,55644.0,55630.0,0.70626215]
[1725607807713,3.00755574,55644.0,55630.0,0.52650515]
[1725607807927,3.03573324,55644.0,55630.0,0.52650515]
[1725607808139,3.39516024,55644.0,55619.0,0.001228]
[1725607808358,3.39516024,55644.0,55643.0,0.01063]
[1725607808790,3.41155541,55644.0,55643.0,0.01063]
[1725607809007,3.41155541,55644.0,55643.0,0.00163]
[1725607809233,3.03573324,55644.0,55643.0,0.00163]
[1725607809449,3.03673324,55644.0,55643.0,0.01063]
[1725607809882,3.03573324,55644.0,55643.0,0.00163]
[1725607810349,2.67630624,55644.0,55643.0,0.00163]
[1725607810592,2.13357924,55644.0,55643.0,0.00163]
[1725607810806,2.46482874,55644.0,55643.0,0.00163]
[1725607811531,3.02335574,55644.0,55643.0,0.00163]
[1725607811745,3.38278274,55644.0,55643.0,0.00163]
[1725607811956,3.38478274,55644.0,55643.0,0.00163]
[1725607812380,3.38478274,55644.0,55619.0,0.001228]
[1725607812381,0.272,55633.0,55619.0,0.001228]
[1725607812640,1.58276174,55633.0,55619.0,0.001228]
[1725607812842,0.179791,55620.0,55619.0,0.001228]
[1725607813277,0.359526,55629.0,55619.0,0.001228]
[1725607813512,1.58276174,55633.0,55620.0,0.3631763]
[1725607813513,0.17977,55627.0,55620.0,0.3631763]
[1725607813737,0.179769,55627.0,55623.0,0.179781]
[1725607813993,0.179769,55627.0,55620.0,0.359581]
[1725607813994,0.179776,55625.0,55621.0,0.18]
[1725607814216,1.33894557,55626.0,55619.0,0.001228]
[1725607814449,0.2623,55625.0,55619.0,0.001228]
[1725607814661,0.359557,55624.0,55619.0,0.001228]
[1725607814892,0.179791,55620.0,55619.0,0.001228]
[1725607815104,0.2623,55625.0,55619.0,0.001228]
[1725607815333,1.31076174,55626.0,55620.0,0.359577]
[1725607815546,1.31076174,55626.0,55625.0,0.179775]
[1725607815990,1.31076174,55626.0,55621.0,0.179787]
[1725607816202,1.31076174,55626.0,55623.0,0.179779]
[1725607816426,0.179791,55620.0,55619.0,0.001228]
[1725607816632,0.2751,55624.0,55619.0,0.001228]
[1725607816862,0.359563,55623.0,55619.0,0.001228]
[1725607817130,1.31076174,55626.0,55619.0,0.001228]
[1725607817584,0.179778,55625.0,55621.0,0.179786]
[1725607817838,0.359551,55625.0,55619.0,0.181021]
[1725607818051,0.359558,55624.0,55619.0,0.001228]
[1725607818270,0.179782,55623.0,55619.0,0.181021]
[1725607818487,0.179791,55620.0,55619.0,0.001228]